bitfinex/quotes_SOLUSD_20250206
["timestamp","ask_amount","ask_price","bid_price","bid_amount"]
[1738855316813,0.12549,194.83,194.73,36.88020905]
[1738855316814,1.0,194.77,194.73,36.88020905]
[1738855317190,1.0,194.76,194.73,36.88020905]
[1738855317391,1.0,194.77,194.73,36.88020905]
[1738855317593,1.0,194.74,194.71,36.88020905]
[1738855318095,1.0,194.74,194.7,1.4e-06]
[1738855318096,1.0,194.71,194.7,1.4e-06]
[1738855318607,1.0,194.64,194.57,36.88020905]
[1738855318927,1.0,194.63,194.57,36.88020905]
[1738855319224,1.0,194.62,194.57,36.88020905]
[1738855319411,1.0,194.66,194.61,36.88020905]
[1738855319601,20.0,194.68,194.64,36.88020905]
[1738855319786,36.88020905,194.71,194.64,36.88020905]
[1738855319992,36.88020905,194.71,194.62,36.88020905]
[1738855320187,20.0,194.66,194.53,12.881]
[1738855320394,36.88020905,194.61,194.53,0.03]
[1738855320611,20.21831688,194.61,194.54,25.93067907]
[1738855320793,20.21831688,194.61,194.53,0.03]
[1738855320794,26.38209238,194.59,194.53,5.1705]
[1738855321003,0.96335412,194.65,194.53,5.1705]
[1738855321004,36.88020905,194.63,194.55,61.91182494]
[1738855321205,36.88020905,194.65,194.57,61.99971562]
[1738855321403,36.88020905,194.67,194.59,62.45434728]
[1738855321809,36.88020905,194.63,194.56,25.59789347]
[1738855322127,36.88020905,194.59,194.54,122.85069417]
[1738855322415,1.16546149,194.57,194.54,122.85069417]
[1738855322630,36.88020905,194.55,194.54,122.85069417]
[1738855322910,36.88020905,194.55,194.54,112.61313633]
[1738855323417,42.02020905,194.55,194.54,112.61313633]
[1738855323718,44.14569905,194.55,194.54,54.38493633]
[1738855323927,44.14569905,194.55,194.54,20.42603633]
[1738855324089,44.14569905,194.55,194.51,0.0001]
[1738855324090,1.12549,194.54,194.53,3.633e-05]
[1738855324293,1.08973039,194.54,194.53,3.633e-05]
[1738855324497,2.08973039,194.54,194.53,3.633e-05]
[1738855324699,2.08973039,194.54,194.5,0.04313633]
[1738855325013,36.88020905,194.51,194.5,0.04313633]
[1738855325208,42.01990905,194.57,194.5,0.04313633]
[1738855325410,20.0,194.52,194.5,0.04313633]
[1738855325609,20.0,194.48,194.41,36.88020905]
[1738855325821,61.95188094,194.47,194.39,36.88020905]
[1738855326203,29.03157211,194.46,194.39,36.88020905]
[1738855326400,29.03157211,194.46,194.34,103.19483319]
[1738855326714,65.91178116,194.46,194.38,36.88020905]
[1738855326904,40.75983582,194.46,194.38,36.88020905]
[1738855327238,40.75983582,194.46,194.35,36.88020905]
[1738855327239,36.88020905,194.42,194.35,36.88020905]
[1738855327401,42.02370905,194.42,194.34,103.19483319]
[1738855327602,36.88020905,194.42,194.34,59.75236959]
[1738855327909,36.88020905,194.38,194.34,54.29789991]
[1738855328227,36.88020905,194.42,194.35,36.88020905]
[1738855328596,45.90253582,194.46,194.37,36.88020905]
[1738855328797,45.90253582,194.46,194.35,13.41184853]
[1738855328798,40.75983582,194.46,194.39,36.88020905]
[1738855329122,36.88020905,194.44,194.35,36.88020905]
[1738855329339,5.1437,194.41,194.34,54.29789991]
[1738855329624,36.88020905,194.38,194.34,5.0309087]
[1738855329944,36.88020905,194.4,194.34,5.0309087]
[1738855330300,0.14110363,194.39,194.34,10.1764087]
[1738855330524,0.14110363,194.39,194.35,36.88020905]
[1738855330938,0.14110363,194.39,194.37,36.88020905]
[1738855331114,0.14110363,194.39,194.35,0.25098]
[1738855331115,0.14110363,194.39,194.38,36.88020905]
[1738855331319,0.14110363,194.39,194.35,0.25098]
[1738855331320,0.14110363,194.39,194.34,41.91111775]
[1738855331539,0.14110363,194.39,194.34,5.0309087]
[1738855331741,36.88020905,194.38,194.34,5.0309087]
[1738855331920,0.14110363,194.37,194.34,5.0309087]
[1738855332338,0.14110363,194.37,194.34,10.1764087]
[1738855332520,0.14110363,194.37,194.35,36.88020905]
[1738855333256,0.14110363,194.37,194.36,36.88020905]
[1738855333429,0.14110363,194.37,194.34,5.0309087]
[1738855333735,37.02131268,194.37,194.34,5.0309087]
[1738855335463,36.88020905,194.35,194.34,5.0309087]
[1738855335821,5.28600363,194.37,194.34,5.0309087]
[1738855335822,42.16621268,194.37,194.34,5.0309087]
[1738855336145,37.02131268,194.37,194.34,5.0309087]
[1738855336514,0.14110363,194.37,194.34,5.0309087]
[1738855337346,37.02131268,194.37,194.34,5.0309087]
[1738855337511,36.88020905,194.35,194.34,5.0309087]
[1738855337718,42.16621268,194.37,194.34,5.0309087]
[1738855337916,37.02131268,194.37,194.34,5.0309087]
[1738855338760,0.14110363,194.37,194.34,10.1763087]
[1738855340029,0.14110363,194.37,194.35,36.88020905]
[1738855340536,3.63e-06,194.37,194.35,36.88020905]
[1738855340721,9.338e-05,194.39,194.38,20.0]
[1738855340926,9.338e-05,194.39,194.38,56.88020905]
[1738855341132,9.338e-05,194.39,194.35,36.88020905]
[1738855341526,36.88030243,194.39,194.34,10.1765087]
[1738855342223,3.87962677,194.38,194.34,10.1765087]
[1738855342627,3.87962677,194.38,194.35,36.88020905]
[1738855342827,3.87962677,194.38,194.37,36.88020905]
[1738855343428,3.87962677,194.38,194.37,42.02500905]
[1738855343641,3.87962677,194.38,194.37,5.1448]
[1738855344018,40.75983582,194.38,194.34,5.0309087]
[1738855344638,3.87962677,194.38,194.34,10.1764087]
[1738855344838,3.87962677,194.38,194.35,36.88020905]
[1738855345137,3.87962677,194.38,194.37,36.88020905]
[1738855345646,3.87962677,194.38,194.37,42.02500905]
[1738855346752,3.87962677,194.38,194.35,5.145]
[1738855346947,3.87962677,194.38,194.34,5.0309087]
[1738855347249,36.88020905,194.36,194.34,5.0309087]
[1738855347649,3.87962677,194.38,194.34,5.0309087]
[1738855348725,3.87962677,194.38,194.36,36.88020905]
[1738855349134,3.87962677,194.38,194.34,10.1762087]
[1738855349847,36.88020905,194.36,194.34,5.0309087]
[1738855350531,3.90962677,194.38,194.34,41.91111775]
[1738855350732,3.90962677,194.38,194.35,36.88020905]
[1738855351231,3.90962677,194.38,194.34,47.05661775]
[1738855351737,3.90962677,194.38,194.37,36.88020905]
[1738855351738,4.00473991,194.38,194.37,36.88020905]
[1738855352140,4.00473991,194.38,194.35,36.88020905]
[1738855352331,4.00473991,194.38,194.34,10.1764087]
[1738855352744,46.02944896,194.38,194.34,5.0309087]
[1738855353139,36.88020905,194.35,194.34,5.0309087]
[1738855353633,42.02550905,194.35,194.34,5.0309087]
[1738855354030,37.13118905,194.35,194.34,5.0309087]
[1738855354654,36.88020905,194.35,194.34,5.0309087]
[1738855355153,36.88020905,194.37,194.34,5.0309087]
[1738855355358,4.00473991,194.38,194.34,5.0309087]
[1738855355948,36.88020905,194.35,194.34,5.0309087]
[1738855356252,36.88020905,194.37,194.34,5.0309087]
[1738855356448,36.88020905,194.36,194.34,5.0309087]
[1738855357175,9.01577591,194.38,194.34,5.0309087]
[1738855357176,36.88020905,194.37,194.34,5.0309087]
[1738855357529,3.74616277,194.36,194.34,5.0309087]
[1738855358042,3.74616277,194.36,194.34,10.1765087]
[1738855359472,36.88020905,194.35,194.34,5.0309087]
[1738855360959,42.02550905,194.35,194.34,5.0309087]
[1738855361341,36.88020905,194.35,194.34,5.0309087]
[1738855362063,38.16740934,194.35,194.34,5.0309087]
[1738855362244,1.28720029,194.35,194.34,5.0309087]
[1738855363131,40.62637182,194.36,194.34,5.0309087]
[1738855363452,3.74616277,194.36,194.34,5.0309087]
[1738855363635,40.62637182,194.36,194.34,5.0309087]
[1738855363955,36.88020905,194.35,194.34,5.0309087]
[1738855365067,38.22168564,194.35,194.34,5.0309087]
[1738855365941,43.36698564,194.35,194.34,5.0309087]
[1738855366148,21.0,194.32,194.3,1.0]
[1738855366355,74.7604181,194.31,194.3,1.0]
[1738855366958,36.88020905,194.31,194.3,1.0]
[1738855367558,38.16750845,194.31,194.3,1.0]
[1738855368037,1.2872994,194.31,194.3,1.0]
[1738855368239,1.2872994,194.31,194.3,43.02680905]
[1738855368759,1.2872994,194.31,194.3,56.43865758]
[1738855369158,1.2872994,194.31,194.3,56.68963758]
[1738855369354,3.74616277,194.36,194.3,43.02680905]
[1738855369558,3.74616277,194.36,194.33,36.88020905]
[1738855369755,3.74616277,194.36,194.32,36.88020905]
[1738855369963,40.62637182,194.36,194.31,5.1462]
[1738855370261,40.62637182,194.36,194.3,1.0]
[1738855370262,36.88020905,194.34,194.3,1.0]
[1738855370458,36.88020905,194.32,194.3,1.0]
[1738855370658,36.88020905,194.31,194.3,1.0]
[1738855370854,36.88020905,194.32,194.3,1.0]
[1738855371059,36.88020905,194.34,194.3,1.0]
[1738855371355,36.88020905,194.33,194.3,1.0]
[1738855371664,36.97516792,194.31,194.3,1.0]
[1738855371847,0.09495887,194.31,194.3,1.0]
[1738855373242,0.09495887,194.31,194.3,43.02680905]
[1738855373490,0.09495887,194.31,194.3,56.43865758]
[1738855373696,0.09495887,194.31,194.3,50.54303758]
[1738855373863,0.10101012,194.32,194.3,87.42324663]
[1738855374185,0.10101012,194.32,194.28,36.88020905]
[1738855374552,0.10101012,194.32,194.29,36.88020905]
[1738855374955,0.10101012,194.32,194.28,36.88020905]
[1738855375363,0.10101012,194.32,194.3,36.88020905]
[1738855375561,0.10101012,194.32,194.31,36.88020905]
[1738855375962,0.10101012,194.32,194.31,50.29205758]
[1738855377359,0.09277068,194.33,194.32,13.66282853]
[1738855377562,0.09277068,194.33,194.32,50.54303758]
[1738855377563,7.068e-05,194.33,194.32,50.54303758]
[1738855377772,0.1079689,194.34,194.32,50.54303758]
[1738855377773,3.958e-05,194.34,194.32,50.66852758]
[1738855377975,3.958e-05,194.34,194.33,50.29205758]
[1738855379180,0.09463588,194.35,194.34,13.66282853]
[1738855379484,42.02210905,194.48,194.35,13.41184853]
[1738855379686,12.8832,194.51,194.34,42.27678905]
[1738855379687,9.267e-05,194.38,194.37,13.66282853]
[1738855379856,5.901e-05,194.39,194.38,0.12549]
[1738855380063,0.03,194.51,194.38,87.54873663]
[1738855380263,0.03,194.51,194.48,36.88020905]
[1738855380564,0.03,194.51,194.5,36.88020905]
[1738855380962,0.03,194.51,194.5,87.29775663]
[1738855381167,0.03,194.57,194.52,0.12549]
[1738855381357,0.03,194.57,194.56,42.02000905]
[1738855382175,0.03,194.57,194.56,55.80832758]
[1738855382379,0.03,194.59,194.58,0.12549]
[1738855382573,7.30213285,194.68,194.6,0.25098]
[1738855382771,7.30213285,194.68,194.67,36.88020905]
[1738855383385,7.30213285,194.68,194.67,42.01700905]
[1738855383979,7.30213285,194.68,194.67,36.88020905]
[1738855384174,7.30213285,194.68,194.66,36.88020905]
[1738855384375,36.88020905,194.72,194.66,36.88020905]
[1738855384581,5.135,194.74,194.67,36.88020905]
[1738855384582,42.01520905,194.74,194.67,36.88020905]
[1738855384772,36.88020905,194.78,194.71,36.88020905]
[1738855385077,6.1868,194.84,194.67,0.12549]
[1738855385078,42.01390905,194.79,194.73,36.88020905]
[1738855385283,0.25098,194.79,194.68,36.88020905]
[1738855385457,0.28098,194.77,194.64,1.6511]
[1738855385658,0.96304828,194.76,194.64,1.6511]
[1738855385860,36.88020905,194.7,194.64,1.6511]
[1738855386152,0.03,194.68,194.65,36.88020905]
[1738855386969,36.91020905,194.68,194.61,42.01840905]
[1738855387377,36.88020905,194.66,194.6,36.88020905]
[1738855387681,36.88020905,194.66,194.53,5.1404]
[1738855387682,0.96333485,194.66,194.53,5.1404]
[1738855387874,20.0,194.65,194.51,5.1409]
[1738855388181,36.88020905,194.6,194.48,42.02200905]
[1738855388368,37.13118905,194.6,194.47,1.5359]
[1738855388574,0.25098,194.59,194.47,1.5359]
[1738855388900,36.88020905,194.5,194.43,36.88020905]
[1738855389053,36.88020905,194.49,194.42,36.88020905]
[1738855389256,36.88020905,194.48,194.41,36.88020905]
[1738855389455,36.88020905,194.47,194.4,36.88020905]
[1738855389659,36.88020905,194.5,194.42,36.88020905]
[1738855389960,36.88020905,194.5,194.43,36.88020905]
[1738855390160,36.88020905,194.5,194.42,36.88020905]
[1738855390372,36.88020905,194.49,194.42,36.88020905]
[1738855390767,42.02190905,194.49,194.42,36.88020905]
[1738855391179,36.88020905,194.51,194.44,36.88020905]
[1738855391486,42.02120905,194.52,194.45,36.88020905]
[1738855391689,0.10963614,194.46,194.45,36.88020905]
[1738855392066,0.10963614,194.46,194.44,36.88020905]
[1738855392674,0.10963614,194.46,194.42,36.88020905]
[1738855392871,0.10963614,194.46,194.45,36.88020905]
[1738855394288,0.10963614,194.46,194.45,50.29205758]
[1738855394475,0.10963614,194.46,194.45,50.41754758]
[1738855394693,1.07e-06,194.47,194.46,13.78831853]
[1738855394894,1.07e-06,194.47,194.46,92.69113663]
[1738855395089,1.07e-06,194.47,194.46,55.81092758]
[1738855395595,1.07e-06,194.47,194.46,42.02260905]
[1738855395896,1.07e-06,194.47,194.46,36.88020905]
[1738855396100,1.07e-06,194.47,194.4,36.88020905]
[1738855396101,1.07e-06,194.47,194.45,36.88020905]
[1738855396282,1.07e-06,194.47,194.46,36.88020905]
[1738855397597,1.07e-06,194.47,194.46,42.02260905]
[1738855398198,1.07e-06,194.47,194.46,36.88020905]
[1738855398990,1.07e-06,194.47,194.45,36.88020905]
[1738855399182,1.07e-06,194.47,194.44,36.88020905]
[1738855399381,1.07e-06,194.47,194.43,36.88020905]
[1738855399578,1.07e-06,194.47,194.44,36.88020905]
[1738855399777,1.07e-06,194.47,194.46,36.88020905]
[1738855400199,1.07e-06,194.47,194.46,50.29205758]
[1738855400497,1.07e-06,194.47,194.46,36.88020905]
[1738855400695,1.07e-06,194.47,194.44,36.88020905]
[1738855401381,1.07e-06,194.47,194.43,36.88020905]
[1738855402379,1.07e-06,194.47,194.46,36.88020905]
[1738855403181,1.07e-06,194.47,194.44,36.88020905]
[1738855403502,1.07e-06,194.47,194.42,36.88020905]
[1738855404490,36.88021012,194.47,194.4,36.88020905]
[1738855404802,36.88020905,194.45,194.39,0.063]
[1738855405183,42.02290905,194.45,194.39,0.063]
[1738855405382,5.1424,194.46,194.4,36.88020905]
[1738855406004,1.07e-06,194.47,194.41,36.88020905]
[1738855406178,1.07e-06,194.47,194.44,36.88020905]
[1738855406381,1.07e-06,194.47,194.46,36.88020905]
[1738855406700,1.07e-06,194.47,194.45,36.88020905]
[1738855407084,1.07e-06,194.47,194.46,36.88020905]
[1738855408383,1.07e-06,194.47,194.46,37.00569905]
[1738855408719,0.09362441,194.49,194.48,0.25098]
[1738855408720,0.01082442,194.49,194.48,0.25098]
[1738855408896,0.11237962,194.5,194.48,13.91380853]
[1738855408897,4.04e-06,194.5,194.48,13.91380853]
[1738855409094,13.80620554,194.67,194.47,16.13053853]
[1738855409095,9.02e-05,194.54,194.53,18.92881853]
[1738855409388,0.03,194.68,194.57,0.12549]
[1738855409585,0.03,194.68,194.65,36.88020905]
[1738855409784,0.03,194.68,194.64,36.88020905]
[1738855409990,0.03,194.68,194.63,36.88020905]
[1738855410308,36.88020905,194.65,194.59,36.88020905]
[1738855410608,36.88020905,194.65,194.58,36.88020905]
[1738855410816,36.88020905,194.62,194.55,36.88020905]
[1738855411182,0.99349612,194.67,194.55,36.88020905]
[1738855411183,36.91020905,194.67,194.6,36.88020905]
[1738855411384,0.03,194.67,194.61,36.88020905]
[1738855411601,0.09546958,194.61,194.6,36.88020905]
[1738855411809,0.09546958,194.61,194.58,36.88020905]
[1738855412003,36.97567863,194.61,194.52,5.1408]
[1738855412203,0.09546958,194.61,194.53,13.41184853]
[1738855412385,0.09546958,194.61,194.54,0.12549]
[1738855412582,0.09546958,194.61,194.47,1.5932]
[1738855412780,1.05894033,194.61,194.48,5.1419]
[1738855412981,22.25098,194.6,194.45,5.1424]
[1738855413192,36.88020905,194.49,194.42,36.88020905]
[1738855413486,36.88020905,194.48,194.42,5.1435]
[1738855413818,36.88020905,194.46,194.39,43.70170905]
[1738855414030,36.88020905,194.45,194.39,6.8215]
[1738855414323,36.88020905,194.43,194.39,0.063]
[1738855414812,36.88020905,194.47,194.39,36.94320905]
[1738855414987,0.96432039,194.49,194.39,0.063]
[1738855414988,36.88020905,194.44,194.39,0.063]
[1738855415296,5.1419,194.48,194.39,0.063]
[1738855415494,36.88020905,194.46,194.39,36.94320905]
[1738855415712,142.1682,194.59,194.39,0.063]
[1738855415908,20.0,194.54,194.39,0.063]
[1738855416845,36.88020905,194.54,194.47,36.88020905]
[1738855417037,36.88020905,194.57,194.49,36.88020905]
[1738855417242,36.88020905,194.55,194.48,36.88020905]
[1738855418120,36.88020905,194.55,194.43,36.88020905]
[1738855418121,36.88020905,194.5,194.43,36.88020905]
[1738855418324,36.88020905,194.51,194.43,42.02340905]
[1738855418826,36.88020905,194.51,194.44,36.88020905]
[1738855419527,5.1402,194.55,194.44,18.55464853]
[1738855419710,36.88020905,194.56,194.49,36.88020905]
[1738855419915,36.88020905,194.51,194.44,42.02300905]
[1738855420517,6.10389905,194.56,194.44,42.02300905]
[1738855420518,6.10389905,194.56,194.46,0.063]
[1738855420718,36.88020905,194.52,194.46,0.063]
[1738855421128,36.88020905,194.53,194.46,42.08560905]
[1738855421352,0.96401957,194.53,194.46,0.063]
[1738855421556,36.88020905,194.5,194.46,0.063]
[1738855421713,0.03,194.54,194.48,36.88020905]
[1738855421912,0.03,194.54,194.46,13.47484853]
[1738855422214,5.1703,194.54,194.46,0.063]
[1738855422415,0.96406654,194.53,194.46,0.063]
[1738855422633,18.98532621,194.54,194.46,0.063]
[1738855422817,0.25098,194.53,194.46,0.063]
[1738855423011,36.88020905,194.47,194.46,0.063]
[1738855423212,42.02230905,194.47,194.46,0.063]
[1738855425618,42.02180905,194.49,194.46,0.063]
[1738855426128,36.88020905,194.47,194.46,0.063]
[1738855426640,36.88020905,194.48,194.46,0.063]
[1738855426820,36.88020905,194.5,194.46,0.063]
[1738855427016,0.96444941,194.53,194.46,36.94320905]
[1738855427017,42.02090905,194.53,194.46,36.94320905]
[1738855427237,0.03,194.54,194.48,36.88020905]
[1738855427443,0.03,194.54,194.49,36.88020905]
[1738855427644,0.03,194.54,194.48,36.88020905]
[1738855428019,36.88020905,194.53,194.46,42.08550905]
[1738855428237,0.03,194.54,194.46,42.08550905]
[1738855428238,5.1704,194.54,194.47,36.88020905]
[1738855428441,0.03,194.54,194.49,36.88020905]
[1738855428751,0.03,194.54,194.5,36.88020905]
[1738855429134,0.03,194.54,194.51,36.88020905]
[1738855429347,0.03,194.54,194.49,36.88020905]
[1738855429552,0.03,194.54,194.5,36.88020905]
[1738855429841,0.03,194.54,194.53,50.29205758]
[1738855430225,0.03,194.54,194.53,50.41754758]
[1738855430421,0.09546958,194.61,194.55,0.12549]
[1738855430623,0.09546958,194.61,194.59,36.88020905]
[1738855431144,42.04710905,194.67,194.6,36.88020905]
[1738855431346,36.91020905,194.67,194.6,36.88020905]
[1738855431542,0.03,194.67,194.61,36.88020905]
[1738855431747,0.09897046,194.63,194.6,5.1387]
[1738855432046,0.09897046,194.63,194.62,36.88020905]
[1738855432924,0.09897046,194.63,194.58,5.139]
[1738855433861,36.97917951,194.63,194.56,42.01970905]
[1738855434149,0.09897046,194.63,194.61,36.88020905]
[1738855434337,0.09897046,194.63,194.57,13.53733853]
[1738855434338,0.09897046,194.63,194.62,36.88020905]
[1738855434537,0.09897046,194.63,194.62,52.18283758]
[1738855434733,0.09478672,194.64,194.63,13.91380853]
[1738855435056,0.10044804,194.66,194.65,13.66282853]
[1738855435057,1.137e-05,194.66,194.65,13.66282853]
[1738855435230,1.137e-05,194.66,194.65,0.25098]
[1738855435431,1.137e-05,194.66,194.65,5.38838]
[1738855435696,1.137e-05,194.66,194.65,5.63936]
[1738855435968,1.137e-05,194.66,194.65,42.01760905]
[1738855437169,1.137e-05,194.66,194.65,55.80592758]
[1738855437372,0.03,194.74,194.69,0.12549]
[1738855437555,0.03,194.74,194.73,50.41754758]
[1738855437956,0.03,194.74,194.73,36.88020905]
[1738855438348,0.03,194.74,194.71,36.88020905]
[1738855439344,0.03,194.74,194.73,50.29205758]
[1738855439648,0.03,194.83,194.75,0.12549]
[1738855439860,5.1627,194.83,194.76,36.88020905]
[1738855440063,0.03,194.83,194.73,20.0]
[1738855440249,0.03,194.83,194.74,13.66282853]
[1738855440455,0.03,194.83,194.75,0.25098]
[1738855440668,0.03,194.83,194.82,36.88020905]
[1738855441592,0.03,194.83,194.82,55.55044758]
[1738855441871,0.03,194.83,194.82,55.42495758]
[1738855442055,0.03,194.83,194.73,32.838]
[1738855442373,0.03,194.83,194.74,5.135]
[1738855442582,0.03,194.83,194.75,13.41184853]
[1738855442795,0.03,194.83,194.74,5.135]
[1738855443159,36.88020905,194.81,194.74,42.01520905]
[1738855443476,0.03,194.83,194.71,1.5016]
[1738855443477,36.88020905,194.75,194.71,1.5016]
[1738855443664,36.88020905,194.74,194.67,36.88020905]
[1738855443867,36.88020905,194.72,194.65,36.88020905]
[1738855444258,1.08838609,194.79,194.66,36.88020905]
[1738855444259,36.88020905,194.73,194.66,36.88020905]
[1738855444462,36.88020905,194.71,194.64,36.88020905]
[1738855444662,36.88020905,194.69,194.63,1.5143]
[1738855444854,36.88020905,194.65,194.57,42.01970905]
[1738855445056,36.88020905,194.63,194.56,36.88020905]
[1738855445262,37.96907812,194.7,194.55,9.6277313]
[1738855445263,36.88020905,194.62,194.55,9.6277313]
[1738855445470,36.88020905,194.63,194.56,36.88020905]
[1738855445875,36.88020905,194.61,194.55,9.6277313]
[1738855446087,36.88020905,194.63,194.56,36.88020905]
[1738855446273,36.88020905,194.63,194.55,43.65630905]
[1738855446458,36.88020905,194.6,194.52,36.88020905]
[1738855446657,36.88020905,194.61,194.53,36.88020905]
[1738855446859,36.88020905,194.59,194.51,36.88020905]
[1738855447053,36.88020905,194.61,194.53,36.88020905]
[1738855447268,6.22672133,194.65,194.52,36.88020905]
[1738855447269,36.88020905,194.59,194.52,36.88020905]
[1738855447481,36.88020905,194.59,194.51,36.88020905]
[1738855447682,36.88020905,194.56,194.49,36.88020905]
[1738855447985,36.88020905,194.59,194.51,36.88020905]
[1738855448173,0.96379722,194.59,194.5,36.88020905]
[1738855448376,0.96379722,194.59,194.47,15.03124853]
[1738855448377,36.88020905,194.54,194.47,36.88020905]
[1738855448576,36.88020905,194.53,194.46,36.94320905]
[1738855448776,36.88020905,194.54,194.47,36.88020905]
[1738855448962,36.88020905,194.57,194.5,36.88020905]
[1738855449282,36.88020905,194.57,194.46,0.063]
[1738855449283,36.88020905,194.56,194.49,36.88020905]
[1738855449578,36.88020905,194.56,194.48,36.88020905]
[1738855449780,42.01910905,194.6,194.53,36.88020905]
[1738855449985,36.88020905,194.56,194.49,36.88020905]
[1738855450367,0.96379891,194.64,194.49,0.12549]
[1738855450556,0.96379891,194.66,194.5,0.12549]
[1738855450889,1.08904793,194.67,194.5,13.66282853]
[1738855451381,5.1376,194.65,194.53,5.1405]
[1738855451581,36.88020905,194.63,194.56,36.88020905]
[1738855451802,0.10346571,194.57,194.54,36.88020905]
[1738855452083,0.10346571,194.57,194.51,36.88020905]
[1738855452473,36.98367476,194.57,194.5,36.88020905]
[1738855452998,36.98367476,194.57,194.54,36.88020905]
[1738855452999,0.10346571,194.57,194.54,36.88020905]
[1738855453464,0.10346571,194.57,194.53,42.02060905]
[1738855453984,0.10346571,194.57,194.49,13.53733853]
[1738855453985,0.10346571,194.57,194.52,36.88020905]
[1738855454359,0.10346571,194.57,194.52,13.41184853]
[1738855454684,0.10346571,194.57,194.56,36.88020905]
[1738855455089,0.10346571,194.57,194.56,50.54303758]
[1738855455292,0.10101651,194.58,194.57,13.66282853]
[1738855455293,8.222e-05,194.58,194.57,13.66282853]
[1738855455463,8.222e-05,194.58,194.57,5.1395]
[1738855455659,8.222e-05,194.58,194.55,36.88020905]
[1738855455884,8.222e-05,194.58,194.56,36.88020905]
[1738855456063,8.222e-05,194.58,194.52,1.5604]
[1738855456261,36.88020905,194.56,194.49,36.88020905]
[1738855456466,36.88020905,194.55,194.47,36.88020905]
[1738855456785,36.88029127,194.58,194.5,36.88020905]
[1738855456969,36.88029127,194.58,194.51,36.88020905]
[1738855457165,8.222e-05,194.58,194.55,36.88020905]
[1738855457368,8.222e-05,194.58,194.54,0.12549]
[1738855457578,8.222e-05,194.58,194.56,36.88020905]
[1738855457786,8.222e-05,194.58,194.56,0.063]
[1738855458284,36.88020905,194.57,194.56,0.063]
[1738855459471,55.95786298,194.57,194.46,0.063]
[1738855459680,36.88020905,194.48,194.46,0.063]
[1738855460089,36.88020905,194.5,194.46,0.063]
[1738855460875,36.88020905,194.53,194.46,36.94320905]
[1738855461079,36.88020905,194.56,194.49,36.88020905]
[1738855461279,36.88020905,194.56,194.48,36.88020905]
[1738855461485,36.88020905,194.56,194.49,36.88020905]
[1738855461686,36.88020905,194.57,194.5,36.88020905]
[1738855461998,36.88020905,194.55,194.48,36.88020905]
[1738855462176,36.88020905,194.52,194.46,0.063]
[1738855462379,36.88020905,194.53,194.46,0.063]
[1738855462771,36.88020905,194.53,194.46,36.94320905]
[1738855462981,36.88020905,194.54,194.48,5.1419]
[1738855463189,36.88020905,194.52,194.46,42.08540905]
[1738855463374,0.96396764,194.58,194.46,0.063]
[1738855463375,36.88020905,194.51,194.46,0.063]
[1738855463600,36.88020905,194.5,194.46,0.063]
[1738855463802,36.88020905,194.49,194.46,0.063]
[1738855464091,0.96407054,194.56,194.46,0.063]
[1738855464092,36.88020905,194.48,194.46,0.063]
[1738855464285,36.88020905,194.49,194.46,0.063]
[1738855464690,0.12549,194.54,194.46,0.063]
[1738855464691,36.88020905,194.47,194.46,0.063]
[1738855465011,42.02230905,194.47,194.46,0.063]
[1738855465619,36.88020905,194.47,194.46,0.063]
[1738855465790,42.02230905,194.47,194.46,0.063]
[1738855465997,42.14779905,194.47,194.46,0.063]
[1738855466231,42.02230905,194.47,194.46,0.063]
[1738855467513,43.27328905,194.47,194.46,0.0001]
[1738855467707,44.2379524,194.47,194.46,0.0001]
[1738855468027,58.77529093,194.47,194.46,0.0001]
[1738855468250,57.00569905,194.44,194.43,0.063]
[1738855468418,1.12549,194.4,194.39,0.063]
[1738855468621,20.0,194.37,194.36,0.0001]
[1738855468804,58.84524686,194.37,194.22,35.06930905]
[1738855468997,36.88020905,194.29,194.22,36.88020905]
[1738855469305,36.88020905,194.32,194.25,36.88020905]
[1738855469502,36.88020905,194.34,194.27,36.88020905]
[1738855469702,36.88020905,194.35,194.28,36.88020905]
[1738855470202,36.88020905,194.39,194.32,36.88020905]
[1738855470401,36.88020905,194.38,194.31,36.88020905]
[1738855470644,36.88020905,194.37,194.3,36.88020905]
[1738855470808,36.88020905,194.38,194.31,36.88020905]
[1738855471203,36.88020905,194.38,194.32,5.1461]
[1738855471558,36.88020905,194.4,194.32,42.02630905]
[1738855471707,0.10814361,194.33,194.32,5.1461]
[1738855471906,0.10814361,194.33,194.32,42.02630905]
[1738855472636,0.10814361,194.33,194.32,5.1461]
[1738855472942,0.10814361,194.33,194.32,42.02630905]
[1738855473309,0.10814361,194.33,194.3,36.88020905]
[1738855474230,0.10814361,194.33,194.29,36.88020905]
[1738855474467,36.98835266,194.33,194.26,42.09090905]
[1738855475337,36.98835266,194.33,194.27,36.88020905]
[1738855475338,0.10814361,194.33,194.27,36.88020905]